{"text_format":"3","workbook":"xlsx","n_sheets":6,"sheets":["Inicio","Panel","Gastos e ingresos","Informe de presupuesto","Listas de datos","Tabla dinámica de categorías"],"not_rendered":{"charts":3,"defined_names":23,"pivot_tables":2},"read":"whole","date_system":"1900"}

{"sheet":"Inicio","index":0,"n_rows":8,"n_cols":2,"rows_kept":8}
[null,"Acerca de la plantilla"]
[null,"Use esta plantilla para crear un presupuesto familiar quincenal."]
[null,"La hoja de cálculo Panel contiene gráficos para los totales mensuales y anuales, además de una tabla para los gastos e ingresos quincenales."]
[null,"Especifique las categorías en la hoja de cálculo Listas de datos y los valores en la hoja de cálculo Ingresos y gastos."]
[null,"Actualice la tabla dinámica en la hoja de cálculo Informe de presupuesto."]
[null,"Nota:"]
[null,"Se facilitan instrucciones adicionales en la columna A de todas las hojas de cálculo. Este texto se ha ocultado de forma intencionada. Para eliminar el texto, seleccione la columna A y, a continuación, ELIMINAR. "]
[null,"Para obtener más información sobre las tablas, presione las teclas MAYÚS y F10 dentro de una tabla, seleccione la opción TABLA y, después, TEXTO ALTERNATIVO. En las tablas dinámicas, presione MAYÚS y F10 en una tabla, seleccione OPCIONES DE TABLA DINÁMICA y, después, seleccione la pestaña TEXTO ALTERNATIVO."]

{"sheet":"Panel","index":1,"n_rows":12,"n_cols":15,"rows_kept":12,"merged":[[0,1,0,13],[1,2,1,7]]}
["Cree un panel para los totales mensuales y anuales, y los ingresos y gastos quincenales en esta hoja de cálculo. Encontrará instrucciones útiles sobre cómo usar esta hoja de cálculo en las celdas de esta columna. El título de este libro se encuentra en la celda de la derecha y el de la hoja de cálculo, en la celda O1.","Presupuesto familiar quincenal",{"$nulls":12},"PANEL"]
["Seleccione el control deslizante de la celda C2 para cambiar el mes en la celda de la derecha; para cambiar el año de la celda I2, seleccione el control deslizante de la celda J2.",{"$f":"CHOOSE(NúmeroDeMes,\"ENERO\",\"FEBRERO\",\"MARZO\",\"ABRIL\",\"MAYO\",\"JUNIO\",\"JULIO\",\"AGOSTO\",\"SEPTIEMBRE\",\"OCTUBRE\",\"NOVIEMBRE\",\"DICIEMBRE\")","v":"DICIEMBRE"},12,{"$nulls":5},{"$f":"YEAR(TODAY())","v":2022}]
["La etiqueta de totales mensuales se encuentra en la celda de la derecha y la de los totales anuales, en la celda I3.","TOTALES DE MESES",{"$nulls":6},"TOTALES ANUALES"]
["El gráfico de barras en el que se comparan los totales de ingresos mensuales con los totales de gastos mensuales se encuentra en la celda C4, mientras que el gráfico de barras en el que se comparan los totales de ingresos anuales con los totales de gastos anuales se encuentra en la celda J4. La instrucción siguiente se encuentra en la celda A8.","INGRESOS",null,{"$f":"TotalesGastosMensuales","v":{"v":0,"d":"$0"}},{"$nulls":4},"INGRESOS",null,null,{"$f":"GastosAnualesTotales","v":{"v":10742,"d":"$10,742"}}]
[null,"GASTOS",null,{"$f":"TotalesIngresosMensuales","v":{"v":0,"d":"$0"}},{"$nulls":4},"GASTOS",null,null,{"$f":"IngresosAnualesTotales","v":{"v":13200,"d":"$13,200"}}]
[]
[]
["La tabla Panel que comienza en la celda a la derecha también se actualiza automáticamente.","Categoría","ENERO","FEBRERO","MARZO","ABRIL","MAYO","JUNIO","JULIO","AGOSTO","SEPTIEMBRE","OCTUBRE","NOVIEMBRE","DICIEMBRE","Minigráfico"]
[null,"Ingresos del 1 al 15",{"$f":"SUMIFS(Ingresos[CANTIDAD],Ingresos[FECHA],\"<=\"&FechaMedio,Ingresos[FECHA],\">=\"&FechaInicio)","v":{"v":0,"d":"$0.00"}},{"$f":"SUMIFS(Ingresos[CANTIDAD],Ingresos[FECHA],\"<=\"&FechaMedio,Ingresos[FECHA],\">=\"&FechaInicio)","v":{"v":0,"d":"$0.00"}},{"$f":"SUMIFS(Ingresos[CANTIDAD],Ingresos[FECHA],\"<=\"&FechaMedio,Ingresos[FECHA],\">=\"&FechaInicio)","v":{"v":1300,"d":"$1,300.00"}},{"$f":"SUMIFS(Ingresos[CANTIDAD],Ingresos[FECHA],\"<=\"&FechaMedio,Ingresos[FECHA],\">=\"&FechaInicio)","v":{"v":2600,"d":"$2,600.00"}},{"$f":"SUMIFS(Ingresos[CANTIDAD],Ingresos[FECHA],\"<=\"&FechaMedio,Ingresos[FECHA],\">=\"&FechaInicio)","v":{"v":2600,"d":"$2,600.00"}},{"$f":"SUMIFS(Ingresos[CANTIDAD],Ingresos[FECHA],\"<=\"&FechaMedio,Ingresos[FECHA],\">=\"&FechaInicio)","v":{"v":0,"d":"$0.00"}},{"$f":"SUMIFS(Ingresos[CANTIDAD],Ingresos[FECHA],\"<=\"&FechaMedio,Ingresos[FECHA],\">=\"&FechaInicio)","v":{"v":0,"d":"$0.00"}},{"$f":"SUMIFS(Ingresos[CANTIDAD],Ingresos[FECHA],\"<=\"&FechaMedio,Ingresos[FECHA],\">=\"&FechaInicio)","v":{"v":0,"d":"$0.00"}},{"$f":"SUMIFS(Ingresos[CANTIDAD],Ingresos[FECHA],\"<=\"&FechaMedio,Ingresos[FECHA],\">=\"&FechaInicio)","v":{"v":0,"d":"$0.00"}},{"$f":"SUMIFS(Ingresos[CANTIDAD],Ingresos[FECHA],\"<=\"&FechaMedio,Ingresos[FECHA],\">=\"&FechaInicio)","v":{"v":0,"d":"$0.00"}},{"$f":"SUMIFS(Ingresos[CANTIDAD],Ingresos[FECHA],\"<=\"&FechaMedio,Ingresos[FECHA],\">=\"&FechaInicio)","v":{"v":0,"d":"$0.00"}},{"$f":"SUMIFS(Ingresos[CANTIDAD],Ingresos[FECHA],\"<=\"&FechaMedio,Ingresos[FECHA],\">=\"&FechaInicio)","v":{"v":0,"d":"$0.00"}}]
[null,"Ingresos desde el 16 hasta fin de mes",{"$f":"SUMIFS(Ingresos[CANTIDAD],Ingresos[FECHA],\"<=\"&FechaFinal,Ingresos[FECHA],\">=\"&FechaMedio+1)","v":{"v":0,"d":"$0.00"}},{"$f":"SUMIFS(Ingresos[CANTIDAD],Ingresos[FECHA],\"<=\"&FechaFinal,Ingresos[FECHA],\">=\"&FechaMedio+1)","v":{"v":0,"d":"$0.00"}},{"$f":"SUMIFS(Ingresos[CANTIDAD],Ingresos[FECHA],\"<=\"&FechaFinal,Ingresos[FECHA],\">=\"&FechaMedio+1)","v":{"v":3100,"d":"$3,100.00"}},{"$f":"SUMIFS(Ingresos[CANTIDAD],Ingresos[FECHA],\"<=\"&FechaFinal,Ingresos[FECHA],\">=\"&FechaMedio+1)","v":{"v":3100,"d":"$3,100.00"}},{"$f":"SUMIFS(Ingresos[CANTIDAD],Ingresos[FECHA],\"<=\"&FechaFinal,Ingresos[FECHA],\">=\"&FechaMedio+1)","v":{"v":500,"d":"$500.00"}},{"$f":"SUMIFS(Ingresos[CANTIDAD],Ingresos[FECHA],\"<=\"&FechaFinal,Ingresos[FECHA],\">=\"&FechaMedio+1)","v":{"v":0,"d":"$0.00"}},{"$f":"SUMIFS(Ingresos[CANTIDAD],Ingresos[FECHA],\"<=\"&FechaFinal,Ingresos[FECHA],\">=\"&FechaMedio+1)","v":{"v":0,"d":"$0.00"}},{"$f":"SUMIFS(Ingresos[CANTIDAD],Ingresos[FECHA],\"<=\"&FechaFinal,Ingresos[FECHA],\">=\"&FechaMedio+1)","v":{"v":0,"d":"$0.00"}},{"$f":"SUMIFS(Ingresos[CANTIDAD],Ingresos[FECHA],\"<=\"&FechaFinal,Ingresos[FECHA],\">=\"&FechaMedio+1)","v":{"v":0,"d":"$0.00"}},{"$f":"SUMIFS(Ingresos[CANTIDAD],Ingresos[FECHA],\"<=\"&FechaFinal,Ingresos[FECHA],\">=\"&FechaMedio+1)","v":{"v":0,"d":"$0.00"}},{"$f":"SUMIFS(Ingresos[CANTIDAD],Ingresos[FECHA],\"<=\"&FechaFinal,Ingresos[FECHA],\">=\"&FechaMedio+1)","v":{"v":0,"d":"$0.00"}},{"$f":"SUMIFS(Ingresos[CANTIDAD],Ingresos[FECHA],\"<=\"&FechaFinal,Ingresos[FECHA],\">=\"&FechaMedio+1)","v":{"v":0,"d":"$0.00"}}]
[null,"Gastos del 1 al 15",{"$f":"SUMIFS(Gastos[CANTIDAD],Gastos[FECHA],\"<=\"&FechaMedio+1,Gastos[FECHA],\">=\"&FechaInicio)","v":{"v":0,"d":"$0.00"}},{"$f":"SUMIFS(Gastos[CANTIDAD],Gastos[FECHA],\"<=\"&FechaMedio+1,Gastos[FECHA],\">=\"&FechaInicio)","v":{"v":0,"d":"$0.00"}},{"$f":"SUMIFS(Gastos[CANTIDAD],Gastos[FECHA],\"<=\"&FechaMedio+1,Gastos[FECHA],\">=\"&FechaInicio)","v":{"v":1225,"d":"$1,225.00"}},{"$f":"SUMIFS(Gastos[CANTIDAD],Gastos[FECHA],\"<=\"&FechaMedio+1,Gastos[FECHA],\">=\"&FechaInicio)","v":{"v":5150,"d":"$5,150.00"}},{"$f":"SUMIFS(Gastos[CANTIDAD],Gastos[FECHA],\"<=\"&FechaMedio+1,Gastos[FECHA],\">=\"&FechaInicio)","v":{"v":2792,"d":"$2,792.00"}},{"$f":"SUMIFS(Gastos[CANTIDAD],Gastos[FECHA],\"<=\"&FechaMedio+1,Gastos[FECHA],\">=\"&FechaInicio)","v":{"v":0,"d":"$0.00"}},{"$f":"SUMIFS(Gastos[CANTIDAD],Gastos[FECHA],\"<=\"&FechaMedio+1,Gastos[FECHA],\">=\"&FechaInicio)","v":{"v":0,"d":"$0.00"}},{"$f":"SUMIFS(Gastos[CANTIDAD],Gastos[FECHA],\"<=\"&FechaMedio+1,Gastos[FECHA],\">=\"&FechaInicio)","v":{"v":0,"d":"$0.00"}},{"$f":"SUMIFS(Gastos[CANTIDAD],Gastos[FECHA],\"<=\"&FechaMedio+1,Gastos[FECHA],\">=\"&FechaInicio)","v":{"v":0,"d":"$0.00"}},{"$f":"SUMIFS(Gastos[CANTIDAD],Gastos[FECHA],\"<=\"&FechaMedio+1,Gastos[FECHA],\">=\"&FechaInicio)","v":{"v":0,"d":"$0.00"}},{"$f":"SUMIFS(Gastos[CANTIDAD],Gastos[FECHA],\"<=\"&FechaMedio+1,Gastos[FECHA],\">=\"&FechaInicio)","v":{"v":0,"d":"$0.00"}},{"$f":"SUMIFS(Gastos[CANTIDAD],Gastos[FECHA],\"<=\"&FechaMedio+1,Gastos[FECHA],\">=\"&FechaInicio)","v":{"v":0,"d":"$0.00"}}]
[null,"Gastos desde el 16 hasta fin de mes",{"$f":"SUMIFS(Gastos[CANTIDAD],Gastos[FECHA],\"<=\"&FechaFinal,Gastos[FECHA],\">=\"&FechaMedio+1)","v":{"v":0,"d":"$0.00"}},{"$f":"SUMIFS(Gastos[CANTIDAD],Gastos[FECHA],\"<=\"&FechaFinal,Gastos[FECHA],\">=\"&FechaMedio+1)","v":{"v":0,"d":"$0.00"}},{"$f":"SUMIFS(Gastos[CANTIDAD],Gastos[FECHA],\"<=\"&FechaFinal,Gastos[FECHA],\">=\"&FechaMedio+1)","v":{"v":200,"d":"$200.00"}},{"$f":"SUMIFS(Gastos[CANTIDAD],Gastos[FECHA],\"<=\"&FechaFinal,Gastos[FECHA],\">=\"&FechaMedio+1)","v":{"v":875,"d":"$875.00"}},{"$f":"SUMIFS(Gastos[CANTIDAD],Gastos[FECHA],\"<=\"&FechaFinal,Gastos[FECHA],\">=\"&FechaMedio+1)","v":{"v":500,"d":"$500.00"}},{"$f":"SUMIFS(Gastos[CANTIDAD],Gastos[FECHA],\"<=\"&FechaFinal,Gastos[FECHA],\">=\"&FechaMedio+1)","v":{"v":0,"d":"$0.00"}},{"$f":"SUMIFS(Gastos[CANTIDAD],Gastos[FECHA],\"<=\"&FechaFinal,Gastos[FECHA],\">=\"&FechaMedio+1)","v":{"v":0,"d":"$0.00"}},{"$f":"SUMIFS(Gastos[CANTIDAD],Gastos[FECHA],\"<=\"&FechaFinal,Gastos[FECHA],\">=\"&FechaMedio+1)","v":{"v":0,"d":"$0.00"}},{"$f":"SUMIFS(Gastos[CANTIDAD],Gastos[FECHA],\"<=\"&FechaFinal,Gastos[FECHA],\">=\"&FechaMedio+1)","v":{"v":0,"d":"$0.00"}},{"$f":"SUMIFS(Gastos[CANTIDAD],Gastos[FECHA],\"<=\"&FechaFinal,Gastos[FECHA],\">=\"&FechaMedio+1)","v":{"v":0,"d":"$0.00"}},{"$f":"SUMIFS(Gastos[CANTIDAD],Gastos[FECHA],\"<=\"&FechaFinal,Gastos[FECHA],\">=\"&FechaMedio+1)","v":{"v":0,"d":"$0.00"}},{"$f":"SUMIFS(Gastos[CANTIDAD],Gastos[FECHA],\"<=\"&FechaFinal,Gastos[FECHA],\">=\"&FechaMedio+1)","v":{"v":0,"d":"$0.00"}}]

{"sheet":"Gastos e ingresos","index":2,"n_rows":36,"n_cols":9,"rows_kept":36,"merged":[[0,1,0,6],[0,7,0,8]]}
["Cree una lista de ingresos y gastos en esta hoja de cálculo. Encontrará instrucciones útiles sobre cómo usar esta hoja de cálculo en las celdas de esta columna. El título del libro se encuentra en la celda de la derecha y el de la hoja de cálculo, en la celda H1.",{"$f":"Título_Presupuesto_Familiar_Quincenal","v":"Presupuesto familiar quincenal"},{"$nulls":5},"INGRESOS Y GASTOS"]
["La etiqueta Ingresos se encuentra en la celda de la derecha y la etiqueta Gastos, en la celda F2.","INGRESOS",{"$nulls":3},"GASTOS"]
["Escriba la información en la tabla Ingresos, a partir de la celda de la derecha, y en la tabla Gastos, a partir de la celda F3.","FECHA","DESCRIPCIÓN","CANTIDAD",null,"FECHA","CATEGORÍA","DESCRIPCIÓN","CANTIDAD"]
[null,{"$f":"TODAY()","v":"2022-05-18"},"Bonificación",{"v":500,"d":"$500.00"},null,{"$f":"TODAY()","v":"2022-05-18"},"Salud","Seguro",{"v":500,"d":"$500.00"}]
[null,{"$f":"TODAY()-14","v":"2022-05-04"},"Nómina de David",{"v":1300,"d":"$1,300.00"},null,{"$f":"TODAY()-7","v":"2022-05-11"},"Hogar","Hipoteca",{"v":1000,"d":"$1,000.00"}]
[null,{"$f":"TODAY()-14","v":"2022-05-04"},"Nómina de Elena",{"v":1300,"d":"$1,300.00"},null,"2022-05-11","Hogar","Electricidad",{"v":100,"d":"$100.00"}]
[null,{"$f":"TODAY()-28","v":"2022-04-20"},"Nómina de David",{"v":1500,"d":"$1,500.00"},null,"2022-05-11","Hogar","Agua o alcantarillado",{"v":50,"d":"$50.00"}]
[null,{"$f":"TODAY()-28","v":"2022-04-20"},"Nómina de Elena",{"v":1600,"d":"$1,600.00"},null,"2022-05-11","Hogar","Basura",{"v":25,"d":"$25.00"}]
[null,{"$f":"TODAY()-42","v":"2022-04-06"},"Nómina de David",{"v":1300,"d":"$1,300.00"},null,"2022-05-11","Hogar","Teléfono móvil",{"v":100,"d":"$100.00"}]
[null,{"$f":"TODAY()-42","v":"2022-04-06"},"Nómina de Elena",{"v":1300,"d":"$1,300.00"},null,"2022-05-11","Hogar","Teléfono móvil",{"v":30,"d":"$30.00"}]
[null,{"$f":"TODAY()-56","v":"2022-03-23"},"Nómina de David",{"v":1500,"d":"$1,500.00"},null,"2022-05-11","Hogar","Hipoteca",{"v":50,"d":"$50.00"}]
[null,{"$f":"TODAY()-56","v":"2022-03-23"},"Nómina de Elena",{"v":1600,"d":"$1,600.00"},null,"2022-05-11","Hogar","Teléfono móvil",{"v":50,"d":"$50.00"}]
[null,{"$f":"TODAY()-70","v":"2022-03-09"},"Nómina de David",{"v":1300,"d":"$1,300.00"},null,{"$f":"TODAY()-7","v":"2022-05-11"},"Hogar","Teléfono móvil",{"v":25,"d":"$25.00"}]
[{"$nulls":5},{"$f":"TODAY()-8","v":"2022-05-10"},"Hogar","Electricidad",{"v":100,"d":"$100.00"}]
[{"$nulls":5},{"$f":"TODAY()-9","v":"2022-05-09"},"Entretenimiento","Películas",{"v":37,"d":"$37.00"}]
[{"$nulls":5},{"$f":"TODAY()-10","v":"2022-05-08"},"Comida","Comestibles",{"v":350,"d":"$350.00"}]
[{"$nulls":5},{"$f":"TODAY()-11","v":"2022-05-07"},"Comida","Restaurantes",{"v":75,"d":"$75.00"}]
[{"$nulls":5},{"$f":"TODAY()-12","v":"2022-05-06"},"Niños","Dinero del almuerzo",{"v":150,"d":"$150.00"}]
[{"$nulls":5},{"$f":"TODAY()-13","v":"2022-05-05"},"Cuentas de inversión","Ahorros",{"v":250,"d":"$250.00"}]
[{"$nulls":5},{"$f":"TODAY()-14","v":"2022-05-04"},"Cuentas de inversión","Cuenta de inversión",{"v":250,"d":"$250.00"}]
[{"$nulls":5},{"$f":"TODAY()-15","v":"2022-05-03"},"Personal","Gimnasio",{"v":100,"d":"$100.00"}]
[{"$nulls":5},{"$f":"TODAY()-16","v":"2022-05-02"},"Mascotas","Comida",{"v":50,"d":"$50.00"}]
[{"$nulls":5},{"$f":"TODAY()-20","v":"2022-04-28"},"Mascotas","Limpieza",{"v":50,"d":"$50.00"}]
[{"$nulls":5},{"$f":"TODAY()-20","v":"2022-04-28"},"Mascotas","Otros",{"v":50,"d":"$50.00"}]
[{"$nulls":5},{"$f":"TODAY()-25","v":"2022-04-23"},"Transporte","Pago del coche 1 ",{"v":300,"d":"$300.00"}]
[{"$nulls":5},{"$f":"TODAY()-25","v":"2022-04-23"},"Transporte","Pago del coche 2 ",{"v":350,"d":"$350.00"}]
[{"$nulls":5},{"$f":"TODAY()-25","v":"2022-04-23"},"Transporte","Seguro del coche",{"v":50,"d":"$50.00"}]
[{"$nulls":5},{"$f":"TODAY()-30","v":"2022-04-18"},"Transporte","Combustible",{"v":50,"d":"$50.00"}]
[{"$nulls":5},{"$f":"TODAY()-31","v":"2022-04-17"},"Transporte","Combustible",{"v":25,"d":"$25.00"}]
[{"$nulls":5},{"$f":"TODAY()-42","v":"2022-04-06"},"Transporte","Pago del coche 2 ",{"v":150,"d":"$150.00"}]
[{"$nulls":5},{"$f":"TODAY()-45","v":"2022-04-03"},"Hogar","Hipoteca",{"v":5000,"d":"$5,000.00"}]
[{"$nulls":5},{"$f":"TODAY()-50","v":"2022-03-29"},"Hogar","Electricidad",{"v":200,"d":"$200.00"}]
[{"$nulls":5},{"$f":"TODAY()-65","v":"2022-03-14"},"Hogar","Teléfono móvil",{"v":100,"d":"$100.00"}]
[{"$nulls":5},{"$f":"TODAY()-70","v":"2022-03-09"},"Hogar","Basura",{"v":50,"d":"$50.00"}]
[{"$nulls":5},{"$f":"TODAY()-75","v":"2022-03-04"},"Hogar","Hipoteca",{"v":1000,"d":"$1,000.00"}]
[{"$nulls":5},{"$f":"TODAY()-78","v":"2022-03-01"},"Entretenimiento","Películas",{"v":75,"d":"$75.00"}]

{"sheet":"Informe de presupuesto","index":3,"n_rows":26,"n_cols":6,"rows_kept":26,"merged":[[0,1,0,4],[1,1,1,3],[4,3,4,5]]}
["Cree un informe de presupuesto en esta hoja de cálculo. Encontrará instrucciones útiles sobre cómo usar esta hoja de cálculo en las celdas de esta columna. El título del libro está en la celda de la derecha y el título de la hoja de cálculo en la celda F1.",{"$f":"Título_Presupuesto_Familiar_Quincenal","v":"Presupuesto familiar quincenal"},{"$nulls":3},"INFORME DE PRESUPUESTO"]
["Seleccione Años, Trimestres, Meses o Días, y use el control deslizante de la derecha para obtener la tabla dinámica Gastos del período seleccionado. La segmentación Categoría para filtrar los datos de la tabla dinámica se encuentra en la celda E2 y la segmentación Descripción, en la celda F2.","La escala de tiempo que hay que filtrar se encuentra en esta celda.",null,null,"La segmentación para filtrar los datos de la tabla dinámica en función de la categoría se encuentra en esta celda.","La segmentación para filtrar los datos de la tabla dinámica en función de la descripción se encuentra en esta celda."]
["Hay una sugerencia en la celda de la derecha.","Presione Mayús+F10 en la tabla dinámica Gastos y seleccione Actualizar para actualizar los datos de esta hoja, o bien seleccione Actualizar en la pestaña Analizar."]
["La etiqueta Gastos está en la celda de la derecha.","GASTOS"]
["La tabla dinámica que muestra los gastos empieza en la celda de la derecha. La etiqueta Totales de categorías se encuentra en la celda D4.","Etiquetas de fila","Suma de CANTIDAD","TOTALES DE CATEGORÍAS"]
["El gráfico de barras en el que se compara cada total por categoría se encuentra en la celda D6.","Pago del coche 1 ",{"v":300,"d":"$300.00"}]
[null,"Pago del coche 2 ",{"v":500,"d":"$500.00"}]
[null,"Agua o alcantarillado",{"v":50,"d":"$50.00"}]
[null,"Ahorros",{"v":250,"d":"$250.00"}]
[null,"Basura",{"v":75,"d":"$75.00"}]
[null,"Combustible",{"v":75,"d":"$75.00"}]
[null,"Comida",{"v":50,"d":"$50.00"}]
[null,"Cuenta de inversión",{"v":250,"d":"$250.00"}]
[null,"Dinero del almuerzo",{"v":150,"d":"$150.00"}]
[null,"Electricidad",{"v":400,"d":"$400.00"}]
[null,"Gimnasio",{"v":100,"d":"$100.00"}]
[null,"Hipoteca",{"v":7050,"d":"$7,050.00"}]
[null,"Limpieza",{"v":50,"d":"$50.00"}]
[null,"Otros",{"v":50,"d":"$50.00"}]
[null,"Películas",{"v":112,"d":"$112.00"}]
[null,"Restaurantes",{"v":75,"d":"$75.00"}]
[null,"Seguro",{"v":500,"d":"$500.00"}]
[null,"Seguro del coche",{"v":50,"d":"$50.00"}]
[null,"Teléfono móvil",{"v":305,"d":"$305.00"}]
[null,"Comestibles",{"v":350,"d":"$350.00"}]
[null,"Total general",{"v":10742,"d":"$10,742.00"}]

{"sheet":"Listas de datos","index":4,"n_rows":8,"n_cols":13,"rows_kept":8,"merged":[[0,1,0,11]]}
["Escriba los datos de Categoría en esta hoja de cálculo para rellenar las listas desplegables de la tabla Gastos que hay en la hoja de cálculo Gastos e ingresos. Modifique los nombres de categoría o las descripciones debajo de cada categoría para actualizar las listas. Encontrará instrucciones útiles sobre cómo usar esta hoja de cálculo en las celdas de esta columna. El título del libro está en la celda de la derecha y el título de la hoja de cálculo en la celda M1.",{"$f":"Título_Presupuesto_Familiar_Quincenal","v":"Presupuesto familiar quincenal"},{"$nulls":10},"LISTAS DE DATOS"]
["Hay una sugerencia en la celda de la derecha.","CONFIGURACIÓN         Los datos de Categoría que hay a continuación se rellenan en las listas desplegables de la tabla Gastos que hay en la hoja Gastos e ingresos. Modifique los nombres de categoría o las descripciones debajo de cada categoría para actualizar las listas."]
["Escriba o modifique los nombres de categoría o las descripciones debajo de cada categoría de la tabla, a partir de la celda de la derecha.","Hogar","Entretenimiento","Comida","Regalos o donativos","Niños","Cuentas de inversión","Salud","Otros","Personal","Mascotas","Impuestos y gastos jurídicos","Transporte"]
[null,"Hipoteca","Películas","Comestibles","Organización benéfica 1","Ropa","IRA","Médicos","Otros","Ropa","Comida","Federal","Pago del coche 1 "]
[null,"Electricidad","Videos y películas","Restaurantes","Organización benéfica 2","Juguetes y juegos","Ahorros","Seguro","Cuotas de la organización","Pelo y uñas","Artículos de consumo","Estatales","Pago del coche 2 "]
[null,"Agua o alcantarillado","Música",null,"Organización benéfica 3","Dinero del almuerzo","Cuenta corriente",null,null,"Tintorería","Salud","Locales","Seguro del coche"]
[null,"Basura","Conciertos y teatro",null,"Regalo","Cuotas y cargos","Jubilación",null,null,"Gimnasio","Limpieza","Otros","Licencias y registros"]
[null,"Teléfono móvil","Eventos deportivos",null,null,"Material escolar","Cuenta de inversión",null,null,"Compras","Otros","Abogados","Combustible"]

{"sheet":"Tabla dinámica de categorías","index":5,"n_rows":13,"n_cols":13,"rows_kept":13,"hidden":true}
[null,"Presupuesto familiar quincenal",{"$nulls":10},"TABLA DINÁMICA DE CATEGORÍAS"]
[null,"Esta tabla dinámica es el origen de datos del gráfico dinámico Totales de categorías que hay en el informe de presupuesto. "]
[null,"Etiquetas de fila","Suma de CANTIDAD"]
[null,"Niños",{"v":150,"d":"$150"}]
[null,"Entretenimiento",{"v":112,"d":"$112"}]
[null,"Comida",{"v":425,"d":"$425"}]
[null,"Hogar",{"v":7880,"d":"$7,880"}]
[null,"Cuentas de inversión",{"v":500,"d":"$500"}]
[null,"Salud",{"v":500,"d":"$500"}]
[null,"Personal",{"v":100,"d":"$100"}]
[null,"Mascotas",{"v":150,"d":"$150"}]
[null,"Transporte",{"v":925,"d":"$925"}]
[null,"Total general",{"v":10742,"d":"$10,742"}]